Workbook

Sheet Munka1
A1: Max erősítés %: | B1: 300
A3: 1 | B3: =100+FLOOR(MIN($B$1,(A3-1)/2),1) -> 100 | C3: 100
A4: 2 | B4: =100+FLOOR(MIN($B$1,(A4-1)/2),1) -> 100 | C4: =C3+B4 -> 200
A5: 3 | B5: 101 | C5: 301
A6: 4 | B6: 101 | C6: 402
A7: 5 | B7: 102 | C7: 504
A8: 6 | B8: 102 | C8: 606
A9: 7 | B9: 103 | C9: 709
A10: 8 | B10: 103 | C10: 812
A11: 9 | B11: 104 | C11: 916
A12: 10 | B12: 104 | C12: 1020
A13: 11 | B13: 105 | C13: 1125
A14: 12 | B14: 105 | C14: 1230
A15: 13 | B15: 106 | C15: 1336
A16: 14 | B16: 106 | C16: 1442
A17: 15 | B17: 107 | C17: 1549
A18: 16 | B18: 107 | C18: 1656
A19: 17 | B19: 108 | C19: 1764
A20: 18 | B20: 108 | C20: 1872
A21: 19 | B21: 109 | C21: 1981
A22: 20 | B22: 109 | C22: 2090
A23: 21 | B23: 110 | C23: 2200
A24: 22 | B24: 110 | C24: 2310
A25: 23 | B25: 111 | C25: 2421
A26: 24 | B26: 111 | C26: 2532
A27: 25 | B27: 112 | C27: 2644
A28: 26 | B28: 112 | C28: 2756
A29: 27 | B29: 113 | C29: 2869
A30: 28 | B30: 113 | C30: 2982
A31: 29 | B31: 114 | C31: 3096
A32: 30 | B32: 114 | C32: 3210
A33: 31 | B33: 115 | C33: 3325
A34: 32 | B34: 115 | C34: 3440
A35: 33 | B35: 116 | C35: 3556
A36: 34 | B36: 116 | C36: 3672
A37: 35 | B37: 117 | C37: 3789
A38: 36 | B38: 117 | C38: 3906
A39: 37 | B39: 118 | C39: 4024
A40: 38 | B40: 118 | C40: 4142
A41: 39 | B41: 119 | C41: 4261
A42: 40 | B42: 119 | C42: 4380
A43: 41 | B43: 120 | C43: 4500
A44: 42 | B44: 120 | C44: 4620
A45: 43 | B45: 121 | C45: 4741
A46: 44 | B46: 121 | C46: 4862
A47: 45 | B47: 122 | C47: 4984
A48: 46 | B48: 122 | C48: 5106
A49: 47 | B49: 123 | C49: 5229
A50: 48 | B50: 123 | C50: 5352
A51: 49 | B51: 124 | C51: 5476
A52: 50 | B52: 124 | C52: 5600
A53: 51 | B53: 125 | C53: 5725
A54: 52 | B54: 125 | C54: 5850
A55: 53 | B55: 126 | C55: 5976
A56: 54 | B56: 126 | C56: 6102
A57: 55 | B57: 127 | C57: 6229
A58: 56 | B58: 127 | C58: 6356
A59: 57 | B59: 128 | C59: 6484
A60: 58 | B60: 128 | C60: 6612
A61: 59 | B61: 129 | C61: 6741
A62: 60 | B62: 129 | C62: 6870
A63: 61 | B63: 130 | C63: 7000
A64: 62 | B64: 130 | C64: 7130
A65: 63 | B65: 131 | C65: 7261
A66: 64 | B66: 131 | C66: 7392
A67: 65 | B67: 132 | C67: 7524
A68: 66 | B68: =100+FLOOR(MIN($B$1,(A68-1)/2),1) -> 132 | C68: =C67+B68 -> 7656
A69: 67 | B69: 133 | C69: 7789
A70: 68 | B70: 133 | C70: 7922
A71: 69 | B71: 134 | C71: 8056
A72: 70 | B72: 134 | C72: 8190
A73: 71 | B73: 135 | C73: 8325
A74: 72 | B74: 135 | C74: 8460
A75: 73 | B75: 136 | C75: 8596
A76: 74 | B76: 136 | C76: 8732
A77: 75 | B77: 137 | C77: 8869
A78: 76 | B78: 137 | C78: 9006
A79: 77 | B79: 138 | C79: 9144
A80: 78 | B80: 138 | C80: 9282
A81: 79 | B81: 139 | C81: 9421
A82: 80 | B82: 139 | C82: 9560
A83: 81 | B83: 140 | C83: 9700
A84: 82 | B84: 140 | C84: 9840
A85: 83 | B85: 141 | C85: 9981
A86: 84 | B86: 141 | C86: 10122
A87: 85 | B87: 142 | C87: 10264
A88: 86 | B88: 142 | C88: 10406
A89: 87 | B89: 143 | C89: 10549
A90: 88 | B90: 143 | C90: 10692
A91: 89 | B91: 144 | C91: 10836
A92: 90 | B92: 144 | C92: 10980
A93: 91 | B93: 145 | C93: 11125
A94: 92 | B94: 145 | C94: 11270
A95: 93 | B95: 146 | C95: 11416
A96: 94 | B96: 146 | C96: 11562
A97: 95 | B97: 147 | C97: 11709
A98: 96 | B98: 147 | C98: 11856
A99: 97 | B99: 148 | C99: 12004
A100: 98 | B100: 148 | C100: 12152
A101: 99 | B101: 149 | C101: 12301
A102: 100 | B102: 149 | C102: 12450
A103: 101 | B103: 150 | C103: 12600
A104: 102 | B104: 150 | C104: 12750
A105: 103 | B105: 151 | C105: 12901
A106: 104 | B106: 151 | C106: 13052
A107: 105 | B107: 152 | C107: 13204
A108: 106 | B108: 152 | C108: 13356
A109: 107 | B109: 153 | C109: 13509
A110: 108 | B110: 153 | C110: 13662
A111: 109 | B111: 154 | C111: 13816
A112: 110 | B112: 154 | C112: 13970
A113: 111 | B113: 155 | C113: 14125
A114: 112 | B114: 155 | C114: 14280
A115: 113 | B115: 156 | C115: 14436
A116: 114 | B116: 156 | C116: 14592
A117: 115 | B117: 157 | C117: 14749
A118: 116 | B118: 157 | C118: 14906
A119: 117 | B119: 158 | C119: 15064
A120: 118 | B120: 158 | C120: 15222
A121: 119 | B121: 159 | C121: 15381
A122: 120 | B122: 159 | C122: 15540
A123: 121 | B123: 160 | C123: 15700
A124: 122 | B124: 160 | C124: 15860
A125: 123 | B125: 161 | C125: 16021
A126: 124 | B126: 161 | C126: 16182
A127: 125 | B127: 162 | C127: 16344
A128: 126 | B128: 162 | C128: 16506
A129: 127 | B129: 163 | C129: 16669
A130: 128 | B130: 163 | C130: 16832
A131: 129 | B131: 164 | C131: 16996
A132: 130 | B132: =100+FLOOR(MIN($B$1,(A132-1)/2),1) -> 164 | C132: =C131+B132 -> 17160
A133: 131 | B133: 165 | C133: 17325
A134: 132 | B134: 165 | C134: 17490
A135: 133 | B135: 166 | C135: 17656
A136: 134 | B136: 166 | C136: 17822
A137: 135 | B137: 167 | C137: 17989
A138: 136 | B138: 167 | C138: 18156
A139: 137 | B139: 168 | C139: 18324
A140: 138 | B140: 168 | C140: 18492
A141: 139 | B141: 169 | C141: 18661
A142: 140 | B142: 169 | C142: 18830
A143: 141 | B143: 170 | C143: 19000
A144: 142 | B144: 170 | C144: 19170
A145: 143 | B145: 171 | C145: 19341
A146: 144 | B146: 171 | C146: 19512
A147: 145 | B147: 172 | C147: 19684
A148: 146 | B148: 172 | C148: 19856
A149: 147 | B149: 173 | C149: 20029
A150: 148 | B150: 173 | C150: 20202
A151: 149 | B151: 174 | C151: 20376
A152: 150 | B152: 174 | C152: 20550
A153: 151 | B153: 175 | C153: 20725
A154: 152 | B154: 175 | C154: 20900
A155: 153 | B155: 176 | C155: 21076
A156: 154 | B156: 176 | C156: 21252
A157: 155 | B157: 177 | C157: 21429
A158: 156 | B158: 177 | C158: 21606
A159: 157 | B159: 178 | C159: 21784
A160: 158 | B160: 178 | C160: 21962
A161: 159 | B161: 179 | C161: 22141
A162: 160 | B162: 179 | C162: 22320
A163: 161 | B163: 180 | C163: 22500
A164: 162 | B164: 180 | C164: 22680
A165: 163 | B165: 181 | C165: 22861
A166: 164 | B166: 181 | C166: 23042
A167: 165 | B167: 182 | C167: 23224
A168: 166 | B168: 182 | C168: 23406
A169: 167 | B169: 183 | C169: 23589
A170: 168 | B170: 183 | C170: 23772
A171: 169 | B171: 184 | C171: 23956
A172: 170 | B172: 184 | C172: 24140
A173: 171 | B173: 185 | C173: 24325
A174: 172 | B174: 185 | C174: 24510
A175: 173 | B175: 186 | C175: 24696
A176: 174 | B176: 186 | C176: 24882
A177: 175 | B177: 187 | C177: 25069
A178: 176 | B178: 187 | C178: 25256
A179: 177 | B179: 188 | C179: 25444
A180: 178 | B180: 188 | C180: 25632
A181: 179 | B181: 189 | C181: 25821
A182: 180 | B182: 189 | C182: 26010
A183: 181 | B183: 190 | C183: 26200
A184: 182 | B184: 190 | C184: 26390
A185: 183 | B185: 191 | C185: 26581
A186: 184 | B186: 191 | C186: 26772
A187: 185 | B187: 192 | C187: 26964
A188: 186 | B188: 192 | C188: 27156
A189: 187 | B189: 193 | C189: 27349
A190: 188 | B190: 193 | C190: 27542
A191: 189 | B191: 194 | C191: 27736
A192: 190 | B192: 194 | C192: 27930
A193: 191 | B193: 195 | C193: 28125
A194: 192 | B194: 195 | C194: 28320
A195: 193 | B195: 196 | C195: 28516
A196: 194 | B196: =100+FLOOR(MIN($B$1,(A196-1)/2),1) -> 196 | C196: =C195+B196 -> 28712
A197: 195 | B197: 197 | C197: 28909
A198: 196 | B198: 197 | C198: 29106
A199: 197 | B199: 198 | C199: 29304
A200: 198 | B200: 198 | C200: 29502
A201: 199 | B201: 199 | C201: 29701
... 401 more rows

Sheet Munka2

Sheet Munka3
